[Event "*** Titled Tuesday 3|2 Blitz (Early)"]
[Site "Chess.com"]
[Date "2016.12.06"]
[Round "4"]
[White "Ar4uha"]
[Black "Lector118"]
[Result "1-0"]
[WhiteElo "2446"]
[BlackElo "2327"]
[TimeControl "180+2"]
[EndTime "11:50:44 PST"]
[Termination "Ar4uha won by resignation"]

1. e4 {[%clk 0:03:02]} 1... e6 {[%clk 0:03:01.2]} 2. c4 {[%clk 0:03:03.1]} 2...
c5 {[%clk 0:03:01.4]} 3. Nf3 {[%clk 0:03:04]} 3... Nf6 {[%clk 0:02:59]} 4. Nc3
{[%clk 0:03:04.8]} 4... Nc6 {[%clk 0:02:46.1]} 5. Be2 {[%clk 0:03:05.3]} 5... e5
{[%clk 0:02:46.5]} 6. O-O {[%clk 0:03:05.9]} 6... d6 {[%clk 0:02:47.7]} 7. a3
{[%clk 0:03:05.4]} 7... Be7 {[%clk 0:02:47.8]} 8. b4 {[%clk 0:03:06.3]} 8...
cxb4 {[%clk 0:02:43.3]} 9. axb4 {[%clk 0:03:08.2]} 9... Nxb4 {[%clk 0:02:44.3]}
10. Ba3 {[%clk 0:03:06.5]} 10... Nc6 {[%clk 0:02:44.5]} 11. d3 {[%clk
0:03:03.8]} 11... O-O {[%clk 0:02:45.1]} 12. Nd2 {[%clk 0:02:48.3]} 12... Nd4
{[%clk 0:02:43.3]} 13. Nb3 {[%clk 0:02:49]} 13... Nc6 {[%clk 0:02:35.1]} 14. Nd5
{[%clk 0:02:48.9]} 14... Be6 {[%clk 0:02:30.1]} 15. Qd2 {[%clk 0:02:45.3]} 15...
Re8 {[%clk 0:02:30.2]} 16. Rfb1 {[%clk 0:02:45.2]} 16... Bf8 {[%clk 0:02:30.2]}
17. Bb2 {[%clk 0:02:42.1]} 17... Qd7 {[%clk 0:02:24.9]} 18. Bc3 {[%clk
0:02:41.3]} 18... b6 {[%clk 0:02:23.6]} 19. Nxf6+ {[%clk 0:02:34]} 19... gxf6
{[%clk 0:02:25.5]} 20. f4 {[%clk 0:02:35.6]} 20... Bh6 {[%clk 0:02:17.7]} 21. g3
{[%clk 0:02:33.5]} 21... f5 {[%clk 0:02:17.7]} 22. Rf1 {[%clk 0:02:28.3]} 22...
fxe4 {[%clk 0:02:08.2]} 23. dxe4 {[%clk 0:02:30.2]} 23... Bh3 {[%clk 0:02:09.5]}
24. Rf2 {[%clk 0:02:31.6]} 24... Kh8 {[%clk 0:01:43.7]} 25. Rd1 {[%clk
0:01:56.8]} 25... Rad8 {[%clk 0:01:39.7]} 26. Bb2 {[%clk 0:01:47.3]} 26... f6
{[%clk 0:01:37]} 27. Qd3 {[%clk 0:01:42.3]} 27... Be6 {[%clk 0:01:27]} 28. Nd2
{[%clk 0:01:36.2]} 28... Bg7 {[%clk 0:01:18.9]} 29. Nf1 {[%clk 0:01:34.9]} 29...
Qb7 {[%clk 0:01:16.5]} 30. Ne3 {[%clk 0:01:34.8]} 30... Nb4 {[%clk 0:01:14.2]}
31. Qb3 {[%clk 0:01:33]} 31... a5 {[%clk 0:01:09.5]} 32. Nd5 {[%clk 0:01:33.8]}
32... Nxd5 {[%clk 0:01:06.6]} 33. exd5 {[%clk 0:01:27.5]} 33... Bg8 {[%clk
0:01:01.5]} 34. Rdf1 {[%clk 0:01:24.8]} 34... e4 {[%clk 0:01:00.2]} 35. Bh5
{[%clk 0:01:25.4]} 35... Bf7 {[%clk 0:01:00.3]} 36. Bg4 {[%clk 0:01:18.8]} 36...
Bg6 {[%clk 0:00:57.1]} 37. f5 {[%clk 0:01:18.1]} 37... Bf7 {[%clk 0:00:57.7]}
38. Bd4 {[%clk 0:01:19]} 38... Rb8 {[%clk 0:00:57]} 39. Re1 {[%clk 0:01:20.4]}
39... b5 {[%clk 0:00:57.4]} 40. Rb1 {[%clk 0:01:13.8]} 40... b4 {[%clk
0:00:50.3]} 41. Ra2 {[%clk 0:01:15]} 41... Qa6 {[%clk 0:00:48.2]} 42. Be2 {[%clk
0:01:14.8]} 42... Qa8 {[%clk 0:00:48.3]} 43. Rba1 {[%clk 0:01:12.1]} 43... Qb7
{[%clk 0:00:44.3]} 44. Rxa5 {[%clk 0:01:13.3]} 44... Qd7 {[%clk 0:00:45.2]} 45.
Ra7 {[%clk 0:01:09]} 45... Rb7 {[%clk 0:00:40.4]} 46. Qxb4 {[%clk 0:01:10.5]}
46... Rxa7 {[%clk 0:00:29.5]} 47. Rxa7 {[%clk 0:01:12.4]} 47... Qxf5 {[%clk
0:00:30.9]} 48. Rxf7 {[%clk 0:01:10.2]} 48... e3 {[%clk 0:00:30.9]} 49. Qe1
{[%clk 0:00:52.8]} 49... Qe4 {[%clk 0:00:23.2]} 50. Ba1 {[%clk 0:00:53.3]} 50...
Re7 {[%clk 0:00:23.6]} 51. Rxe7 {[%clk 0:00:52.3]} 51... Qxe7 {[%clk 0:00:25.5]}
52. Bd3 {[%clk 0:00:53.8]} 52... Bh6 {[%clk 0:00:22.6]} 53. Qf1 {[%clk
0:00:50.9]} 53... Kg7 {[%clk 0:00:23.9]} 54. Qf3 {[%clk 0:00:48.4]} 54... e2
{[%clk 0:00:16]} 55. Qxe2 {[%clk 0:00:32.3]} 55... Qa7+ {[%clk 0:00:17.1]} 56.
Kg2 {[%clk 0:00:33.9]} 56... Be3 {[%clk 0:00:13.1]} 57. Qg4+ {[%clk 0:00:29.6]}
57... Kf8 {[%clk 0:00:08]} 58. Bxf6 {[%clk 0:00:28.1]} 58... Qa2+ {[%clk
0:00:08.1]} 59. Kh3 {[%clk 0:00:29.2]} 59... Qd2 {[%clk 0:00:05.2]} 60. Qg7+
{[%clk 0:00:30]} 1-0

[Event "*** Titled Tuesday 3|2 Blitz (Early)"]
[Site "Chess.com"]
[Date "2016.12.06"]
[Round "4"]
[White "Andrejkin"]
[Black "Rating-Schmating"]
[Result "0-1"]
[WhiteElo "2182"]
[BlackElo "2222"]
[TimeControl "180+2"]
[EndTime "11:50:54 PST"]
[Termination "Rating-Schmating won by checkmate"]

1. e4 {[%clk 0:03:00]} 1... e6 {[%clk 0:03:01]} 2. d4 {[%clk 0:03:00.8]} 2... d5
{[%clk 0:03:01.2]} 3. Nc3 {[%clk 0:03:02]} 3... Bb4 {[%clk 0:03:01.5]} 4. exd5
{[%clk 0:03:01.9]} 4... exd5 {[%clk 0:03:02.1]} 5. Bd3 {[%clk 0:03:03.1]} 5...
Ne7 {[%clk 0:03:02.4]} 6. Nf3 {[%clk 0:03:04.2]} 6... Bg4 {[%clk 0:03:01.7]} 7.
O-O {[%clk 0:02:42.4]} 7... c6 {[%clk 0:02:55.1]} 8. Re1 {[%clk 0:02:40.4]} 8...
Bh5 {[%clk 0:02:52.4]} 9. a3 {[%clk 0:02:39]} 9... Bd6 {[%clk 0:02:53]} 10. h3
{[%clk 0:02:37.3]} 10... Bg6 {[%clk 0:02:49.5]} 11. Ne5 {[%clk 0:02:32.2]} 11...
Bxd3 {[%clk 0:02:47.6]} 12. Nxd3 {[%clk 0:02:34.1]} 12... Nd7 {[%clk 0:02:47.7]}
13. Bg5 {[%clk 0:02:30.4]} 13... f6 {[%clk 0:02:48.2]} 14. Qh5+ {[%clk
0:02:24.2]} 14... g6 {[%clk 0:02:43.5]} 15. Qh6 {[%clk 0:02:25.3]} 15... fxg5
{[%clk 0:02:41.8]} 16. Qg7 {[%clk 0:02:24.1]} 16... Rf8 {[%clk 0:02:41.8]} 17.
Qxh7 {[%clk 0:02:24.2]} 17... Qc7 {[%clk 0:02:41.1]} 18. Qxg6+ {[%clk
0:02:22.4]} 18... Kd8 {[%clk 0:02:40.6]} 19. Qxg5 {[%clk 0:02:21.9]} 19... Nf6
{[%clk 0:02:33.5]} 20. Ne5 {[%clk 0:02:18.9]} 20... Bxe5 {[%clk 0:02:30.2]} 21.
Rxe5 {[%clk 0:02:18.1]} 21... Rc8 {[%clk 0:02:14.6]} 22. Rae1 {[%clk 0:02:13.2]}
22... Nfg8 {[%clk 0:02:14.2]} 23. h4 {[%clk 0:01:59.6]} 23... Qd7 {[%clk
0:02:13.7]} 24. h5 {[%clk 0:01:57.4]} 24... Kc7 {[%clk 0:02:12.6]} 25. h6 {[%clk
0:01:51.9]} 25... Rf5 {[%clk 0:02:12.6]} 26. Qg7 {[%clk 0:01:40.5]} 26... Rxe5
{[%clk 0:01:57.2]} 27. Rxe5 {[%clk 0:01:42.4]} 27... Nf5 {[%clk 0:01:34.1]} 28.
Qxd7+ {[%clk 0:01:08.3]} 28... Kxd7 {[%clk 0:01:34.8]} 29. Rxf5 {[%clk
0:01:10.2]} 29... Nxh6 {[%clk 0:01:35.6]} 30. Rh5 {[%clk 0:01:11]} 30... Ng4
{[%clk 0:01:36.1]} 31. Rh7+ {[%clk 0:01:11.7]} 31... Kd6 {[%clk 0:01:36.7]} 32.
Rxb7 {[%clk 0:01:04.3]} 32... Re8 {[%clk 0:01:37.4]} 33. g3 {[%clk 0:00:57.7]}
33... Re1+ {[%clk 0:01:37.7]} 34. Kg2 {[%clk 0:00:58.5]} 34... Rc1 {[%clk
0:01:38.9]} 35. Rxa7 {[%clk 0:00:58.9]} 35... Rxc2 {[%clk 0:01:38.7]} 36. Rb7
{[%clk 0:00:59.9]} 36... Rxf2+ {[%clk 0:01:37.9]} 37. Kh3 {[%clk 0:01:01.1]}
37... Ne3 {[%clk 0:01:35.7]} 38. g4 {[%clk 0:00:43.5]} 38... Rf3+ {[%clk
0:01:33.7]} 39. Kh4 {[%clk 0:00:42]} 39... Rf4 {[%clk 0:01:34.9]} 40. Kh5 {[%clk
0:00:40.2]} 40... Rxg4 {[%clk 0:01:31.3]} 41. a4 {[%clk 0:00:41.3]} 41... Rg8
{[%clk 0:01:30.6]} 42. Rb6 {[%clk 0:00:37.3]} 42... Nc4 {[%clk 0:01:30.6]} 43.
Nb5+ {[%clk 0:00:32]} 43... Kd7 {[%clk 0:01:30.8]} 44. Rb7+ {[%clk 0:00:32.2]}
44... Ke6 {[%clk 0:01:32.2]} 45. Nc7+ {[%clk 0:00:30.7]} 45... Kf5 {[%clk
0:01:32.1]} 46. Kh6 {[%clk 0:00:26.8]} 46... Nd6 {[%clk 0:01:25.4]} 47. Rb6
{[%clk 0:00:12]} 47... Rg6+ {[%clk 0:01:20.9]} 48. Kh7 {[%clk 0:00:12.2]} 48...
Ne4 {[%clk 0:01:19.7]} 49. Nxd5 {[%clk 0:00:04.1]} 49... Ng5+ {[%clk 0:01:09.4]}
50. Kh8 {[%clk 0:00:04.3]} 50... Rh6+ {[%clk 0:00:43.5]} 51. Kg7 {[%clk
0:00:04.9]} 51... Rh7+ {[%clk 0:00:43]} 52. Kg8 {[%clk 0:00:05]} 52... cxd5
{[%clk 0:00:42]} 53. Rb5 {[%clk 0:00:06.1]} 53... Rd7 {[%clk 0:00:42]} 54. a5
{[%clk 0:00:04.2]} 54... Kf6 {[%clk 0:00:42.1]} 55. Rb6+ {[%clk 0:00:05.1]}
55... Ne6 {[%clk 0:00:43.2]} 56. a6 {[%clk 0:00:05.6]} 56... Ra7 {[%clk
0:00:40.7]} 57. Rb7 {[%clk 0:00:05.7]} 57... Rxa6 {[%clk 0:00:38.4]} 58. Kh7
{[%clk 0:00:06.8]} 58... Ra1 {[%clk 0:00:35.3]} 59. b4 {[%clk 0:00:05.4]} 59...
Ng5+ {[%clk 0:00:33.1]} 60. Kg8 {[%clk 0:00:05.2]} 60... Ra8+ {[%clk 0:00:33.8]}
61. Rb8 {[%clk 0:00:04.9]} 61... Rxb8# {[%clk 0:00:35.1]} 0-1

[Event "*** Titled Tuesday 3|2 Blitz (Early)"]
[Site "Chess.com"]
[Date "2016.12.06"]
[Round "4"]
[White "bilelou"]
[Black "Morshynska"]
[Result "1/2-1/2"]
[WhiteElo "2344"]
[BlackElo "2137"]
[TimeControl "180+2"]
[EndTime "11:51:04 PST"]
[Termination "Game drawn - insufficient material"]

1. d4 {[%clk 0:03:02]} 1... Nf6 {[%clk 0:03:00.3]} 2. c4 {[%clk 0:03:00.1]} 2...
e6 {[%clk 0:03:01.5]} 3. Nf3 {[%clk 0:02:59.7]} 3... b6 {[%clk 0:03:02.2]} 4. g3
{[%clk 0:02:59.4]} 4... Bb7 {[%clk 0:03:03.3]} 5. Bg2 {[%clk 0:03:00.3]} 5...
Be7 {[%clk 0:03:04.1]} 6. O-O {[%clk 0:03:00.3]} 6... O-O {[%clk 0:03:05.2]} 7.
Re1 {[%clk 0:03:01.5]} 7... Na6 {[%clk 0:03:05.1]} 8. a3 {[%clk 0:03:01.6]} 8...
d5 {[%clk 0:02:45.7]} 9. Ne5 {[%clk 0:02:58.5]} 9... c5 {[%clk 0:02:35]} 10.
dxc5 {[%clk 0:02:53.9]} 10... bxc5 {[%clk 0:02:23.8]} 11. Nc3 {[%clk 0:02:53.6]}
11... Nc7 {[%clk 0:02:08.4]} 12. Bf4 {[%clk 0:02:50]} 12... Nh5 {[%clk
0:01:51.9]} 13. Bd2 {[%clk 0:02:40.5]} 13... Qd6 {[%clk 0:01:40.2]} 14. Nd3
{[%clk 0:02:35.2]} 14... Rfd8 {[%clk 0:00:27.9]} 15. cxd5 {[%clk 0:00:29.2]}
15... exd5 {[%clk 0:00:27.1]} 16. Nf4 {[%clk 0:00:29.1]} 16... Nf6 {[%clk
0:00:22.2]} 17. Rc1 {[%clk 0:00:28.6]} 17... Rac8 {[%clk 0:00:18.5]} 18. Qa4
{[%clk 0:00:25.2]} 18... Qb6 {[%clk 0:00:17.7]} 19. b4 {[%clk 0:00:24.9]} 19...
Bc6 {[%clk 0:00:16.2]} 20. Qb3 {[%clk 0:00:23.8]} 20... c4 {[%clk 0:00:17.1]}
21. Qb1 {[%clk 0:00:21.6]} 21... d4 {[%clk 0:00:17.9]} 22. Ne4 {[%clk
0:00:22.3]} 22... Bxe4 {[%clk 0:00:17.3]} 23. Bxe4 {[%clk 0:00:22.1]} 23... Nxe4
{[%clk 0:00:19.2]} 24. Qxe4 {[%clk 0:00:21.9]} 24... Ne6 {[%clk 0:00:21.1]} 25.
Nxe6 {[%clk 0:00:22.4]} 25... Qxe6 {[%clk 0:00:23]} 26. Qxe6 {[%clk 0:00:23.2]}
26... fxe6 {[%clk 0:00:24.9]} 27. Bf4 {[%clk 0:00:24.5]} 27... Bf6 {[%clk
0:00:22.9]} 28. Red1 {[%clk 0:00:23.1]} 28... e5 {[%clk 0:00:23.9]} 29. Bd2
{[%clk 0:00:23.7]} 29... c3 {[%clk 0:00:21.3]} 30. Be1 {[%clk 0:00:23.2]} 30...
e4 {[%clk 0:00:22.8]} 31. f3 {[%clk 0:00:21.4]} 31... d3 {[%clk 0:00:23.8]} 32.
exd3 {[%clk 0:00:18.3]} 32... exd3 {[%clk 0:00:25.7]} 33. Kg2 {[%clk 0:00:19.8]}
33... d2 {[%clk 0:00:23.9]} 34. Bxd2 {[%clk 0:00:20.9]} 34... cxd2 {[%clk
0:00:24]} 35. Rxc8 {[%clk 0:00:22.5]} 35... Rxc8 {[%clk 0:00:25.1]} 36. Rxd2
{[%clk 0:00:24.1]} 36... Rc7 {[%clk 0:00:25.1]} 37. a4 {[%clk 0:00:22.4]} 37...
Rb7 {[%clk 0:00:22.2]} 38. b5 {[%clk 0:00:23.6]} 38... Kf7 {[%clk 0:00:22.4]}
39. f4 {[%clk 0:00:23.8]} 39... h5 {[%clk 0:00:22.1]} 40. Kf3 {[%clk 0:00:24.4]}
40... Ke6 {[%clk 0:00:22.5]} 41. h3 {[%clk 0:00:26]} 41... Rd7 {[%clk
0:00:22.8]} 42. Re2+ {[%clk 0:00:25.5]} 42... Kd5 {[%clk 0:00:22.7]} 43. f5
{[%clk 0:00:25.8]} 43... Kc4 {[%clk 0:00:21.8]} 44. g4 {[%clk 0:00:27.1]} 44...
hxg4+ {[%clk 0:00:23.4]} 45. hxg4 {[%clk 0:00:28.7]} 45... Kb4 {[%clk
0:00:22.2]} 46. Re6 {[%clk 0:00:30.3]} 46... Kxa4 {[%clk 0:00:22]} 47. b6 {[%clk
0:00:31.9]} 47... axb6 {[%clk 0:00:18.4]} 48. Rxb6 {[%clk 0:00:32.2]} 48... Ka5
{[%clk 0:00:18.8]} 49. Rb1 {[%clk 0:00:33]} 49... Rd3+ {[%clk 0:00:17]} 50. Kf4
{[%clk 0:00:33.5]} 50... Rd4+ {[%clk 0:00:18.2]} 51. Kf3 {[%clk 0:00:34.9]}
51... Rd3+ {[%clk 0:00:19.4]} 52. Ke4 {[%clk 0:00:36.1]} 52... Rg3 {[%clk
0:00:16.6]} 53. Kf4 {[%clk 0:00:36.6]} 53... Rg2 {[%clk 0:00:16.3]} 54. Rb7
{[%clk 0:00:32.3]} 54... Rb2 {[%clk 0:00:17]} 55. Rxb2 {[%clk 0:00:32.2]} 55...
Bxb2 {[%clk 0:00:18.9]} 56. g5 {[%clk 0:00:33.7]} 56... Kb5 {[%clk 0:00:19.8]}
57. Kg4 {[%clk 0:00:35.2]} 57... Kc6 {[%clk 0:00:20.2]} 58. f6 {[%clk
0:00:36.6]} 58... gxf6 {[%clk 0:00:20.9]} 59. g6 {[%clk 0:00:37.7]} 59... f5+
{[%clk 0:00:20.7]} 60. Kxf5 {[%clk 0:00:39.4]} 60... Bg7 {[%clk 0:00:21.5]} 61.
Ke6 {[%clk 0:00:41]} 61... Bc3 {[%clk 0:00:22.5]} 62. Kf7 {[%clk 0:00:42.6]}
62... Kd7 {[%clk 0:00:23.1]} 63. Kg8 {[%clk 0:00:44.3]} 63... Ke8 {[%clk
0:00:23.7]} 64. Kh7 {[%clk 0:00:46]} 64... Kf8 {[%clk 0:00:24.6]} 65. g7+ {[%clk
0:00:47.7]} 65... Bxg7 {[%clk 0:00:24.9]} 1/2-1/2

[Event "*** Titled Tuesday 3|2 Blitz (Early)"]
[Site "Chess.com"]
[Date "2016.12.06"]
[Round "4"]
[White "stuffings101"]
[Black "FrankieJay"]
[Result "1/2-1/2"]
[WhiteElo "2172"]
[BlackElo "2208"]
[TimeControl "180+2"]
[EndTime "11:51:06 PST"]
[Termination "Game drawn by repetition"]

1. Nf3 {[%clk 0:03:01.9]} 1... Nf6 {[%clk 0:03:00.7]} 2. g3 {[%clk 0:03:02.8]}
2... g6 {[%clk 0:03:02]} 3. Bg2 {[%clk 0:03:03.7]} 3... Bg7 {[%clk 0:03:03.5]}
4. O-O {[%clk 0:03:04.2]} 4... O-O {[%clk 0:03:04.9]} 5. d3 {[%clk 0:03:05.3]}
5... d5 {[%clk 0:03:06.1]} 6. c3 {[%clk 0:03:06.3]} 6... c6 {[%clk 0:03:03.9]}
7. Nbd2 {[%clk 0:03:05.8]} 7... Nbd7 {[%clk 0:02:59.2]} 8. e4 {[%clk 0:03:05.4]}
8... e5 {[%clk 0:03:00.4]} 9. Re1 {[%clk 0:03:03.4]} 9... Re8 {[%clk 0:03:01.8]}
10. b4 {[%clk 0:02:57.5]} 10... a5 {[%clk 0:02:52.7]} 11. Bb2 {[%clk 0:02:55.7]}
11... axb4 {[%clk 0:02:42.7]} 12. cxb4 {[%clk 0:02:56.1]} 12... Qb6 {[%clk
0:02:44.2]} 13. a3 {[%clk 0:02:48.2]} 13... h6 {[%clk 0:02:05.6]} 14. h3 {[%clk
0:02:47.3]} 14... Kh7 {[%clk 0:01:57.8]} 15. exd5 {[%clk 0:02:29.6]} 15... Nxd5
{[%clk 0:01:58.6]} 16. Nc4 {[%clk 0:02:30.1]} 16... Qc7 {[%clk 0:01:53.6]} 17.
Rc1 {[%clk 0:02:19.4]} 17... N5b6 {[%clk 0:01:46.8]} 18. Qc2 {[%clk 0:02:08.1]}
18... Nxc4 {[%clk 0:01:34.7]} 19. dxc4 {[%clk 0:02:08.6]} 19... Nf8 {[%clk
0:01:12.3]} 20. h4 {[%clk 0:01:52.9]} 20... Bf5 {[%clk 0:01:10.6]} 21. Qb3
{[%clk 0:01:50.8]} 21... Rad8 {[%clk 0:01:06.6]} 22. Rcd1 {[%clk 0:01:48.4]}
22... Bg4 {[%clk 0:00:55.9]} 23. Rxd8 {[%clk 0:01:44.6]} 23... Qxd8 {[%clk
0:00:53.9]} 24. Nxe5 {[%clk 0:01:19.3]} 24... Nd7 {[%clk 0:00:52.7]} 25. Nf3
{[%clk 0:01:08.6]} 25... Bxf3 {[%clk 0:00:34.7]} 26. Rxe8 {[%clk 0:01:05.5]}
26... Qxe8 {[%clk 0:00:36.6]} 27. Bxf3 {[%clk 0:01:05.7]} 27... Qe1+ {[%clk
0:00:33.8]} 28. Kg2 {[%clk 0:01:05.9]} 28... Ne5 {[%clk 0:00:18.8]} 29. Qc3
{[%clk 0:00:58.1]} 29... Qxc3 {[%clk 0:00:15.6]} 30. Bxc3 {[%clk 0:00:58.7]}
30... Nxf3 {[%clk 0:00:17.2]} 31. Bxg7 {[%clk 0:00:58.5]} 31... Nxh4+ {[%clk
0:00:12.2]} 32. gxh4 {[%clk 0:00:59.4]} 32... Kxg7 {[%clk 0:00:14.1]} 33. a4
{[%clk 0:00:50.3]} 33... Kf6 {[%clk 0:00:15.6]} 34. a5 {[%clk 0:00:51.4]} 34...
Ke5 {[%clk 0:00:15.8]} 35. b5 {[%clk 0:00:52.7]} 35... cxb5 {[%clk 0:00:17.7]}
36. cxb5 {[%clk 0:00:53.2]} 36... Kd6 {[%clk 0:00:19]} 37. a6 {[%clk 0:00:44.8]}
37... bxa6 {[%clk 0:00:20.9]} 38. bxa6 {[%clk 0:00:45.8]} 38... Kc6 {[%clk
0:00:22.8]} 39. Kf3 {[%clk 0:00:46.3]} 39... Kb6 {[%clk 0:00:24.4]} 40. Ke4
{[%clk 0:00:46.1]} 40... Kxa6 {[%clk 0:00:25.8]} 41. Ke5 {[%clk 0:00:47.1]}
41... Kb6 {[%clk 0:00:19.1]} 42. Kf6 {[%clk 0:00:48.1]} 42... h5 {[%clk
0:00:20.8]} 43. Kxf7 {[%clk 0:00:48.8]} 43... g5 {[%clk 0:00:21.4]} 44. hxg5
{[%clk 0:00:37.9]} 44... h4 {[%clk 0:00:23.3]} 45. g6 {[%clk 0:00:38.5]} 45...
h3 {[%clk 0:00:25.2]} 46. g7 {[%clk 0:00:40.4]} 46... h2 {[%clk 0:00:27.1]} 47.
g8=Q {[%clk 0:00:41.7]} 47... h1=Q {[%clk 0:00:29]} 48. Qb8+ {[%clk 0:00:39]}
48... Kc5 {[%clk 0:00:27.3]} 49. Qe5+ {[%clk 0:00:32.7]} 49... Kc4 {[%clk
0:00:24.8]} 50. f4 {[%clk 0:00:31.8]} 50... Qh7+ {[%clk 0:00:23.3]} 51. Ke6
{[%clk 0:00:30.3]} 51... Qg8+ {[%clk 0:00:24.2]} 52. Kf6 {[%clk 0:00:25.5]}
52... Qf8+ {[%clk 0:00:24.2]} 53. Ke6 {[%clk 0:00:25.2]} 53... Qg8+ {[%clk
0:00:25.6]} 54. Kd7 {[%clk 0:00:26]} 54... Qf7+ {[%clk 0:00:24.2]} 55. Kc6
{[%clk 0:00:21.9]} 55... Qg6+ {[%clk 0:00:24.4]} 56. Kb7 {[%clk 0:00:13.5]}
56... Qf7+ {[%clk 0:00:19.3]} 57. Kc6 {[%clk 0:00:12.7]} 57... Qg6+ {[%clk
0:00:20.1]} 58. Kd7 {[%clk 0:00:12.7]} 58... Qf7+ {[%clk 0:00:20.8]} 59. Kd6
{[%clk 0:00:14]} 59... Qf8+ {[%clk 0:00:19.9]} 60. Ke6 {[%clk 0:00:13.8]} 60...
Qg8+ {[%clk 0:00:20.1]} 1/2-1/2

[Event "*** Titled Tuesday 3|2 Blitz (Early)"]
[Site "Chess.com"]
[Date "2016.12.06"]
[Round "4"]
[White "josiwales"]
[Black "MateusViageiro"]
[Result "1-0"]
[WhiteElo "2252"]
[BlackElo "2257"]
[TimeControl "180+2"]
[EndTime "11:51:07 PST"]
[Termination "josiwales won by resignation"]

1. e4 {[%clk 0:03:02]} 1... c5 {[%clk 0:02:59.5]} 2. Nc3 {[%clk 0:03:00.5]} 2...
d6 {[%clk 0:02:59.7]} 3. g3 {[%clk 0:03:02.4]} 3... Nf6 {[%clk 0:03:00.7]} 4.
Bg2 {[%clk 0:03:04]} 4... g6 {[%clk 0:03:02.2]} 5. d3 {[%clk 0:03:05.6]} 5...
Bg7 {[%clk 0:03:03.7]} 6. f4 {[%clk 0:03:06.7]} 6... O-O {[%clk 0:03:05.1]} 7.
Nf3 {[%clk 0:03:06.6]} 7... a6 {[%clk 0:03:06.6]} 8. O-O {[%clk 0:03:08]} 8...
Qc7 {[%clk 0:03:08.1]} 9. h3 {[%clk 0:03:08.8]} 9... Nc6 {[%clk 0:03:09.5]} 10.
g4 {[%clk 0:03:10.1]} 10... Rb8 {[%clk 0:03:10.4]} 11. f5 {[%clk 0:03:11.6]}
11... b5 {[%clk 0:03:10.7]} 12. g5 {[%clk 0:03:06.7]} 12... Nd7 {[%clk
0:03:04.3]} 13. Nd5 {[%clk 0:03:07.4]} 13... Qd8 {[%clk 0:03:04.6]} 14. h4
{[%clk 0:03:03.6]} 14... Bb7 {[%clk 0:03:05.1]} 15. c3 {[%clk 0:02:57.8]} 15...
e6 {[%clk 0:03:05.5]} 16. f6 {[%clk 0:02:51.5]} 16... exd5 {[%clk 0:03:04.8]}
17. fxg7 {[%clk 0:02:52.3]} 17... Kxg7 {[%clk 0:03:05.3]} 18. exd5 {[%clk
0:02:53.6]} 18... Nce5 {[%clk 0:03:06.2]} 19. Nxe5 {[%clk 0:02:54.7]} 19... Nxe5
{[%clk 0:03:07.1]} 20. Bf4 {[%clk 0:02:54.6]} 20... f6 {[%clk 0:03:06.6]} 21.
Bxe5 {[%clk 0:02:55]} 21... fxe5 {[%clk 0:03:03.5]} 22. c4 {[%clk 0:02:54.9]}
22... Bc8 {[%clk 0:03:00.2]} 23. b3 {[%clk 0:02:55]} 23... Bf5 {[%clk
0:03:00.5]} 24. Qd2 {[%clk 0:02:52.7]} 24... Qd7 {[%clk 0:02:58.7]} 25. Rf2
{[%clk 0:02:50]} 25... Bh3 {[%clk 0:02:52.7]} 26. Bf3 {[%clk 0:01:51]} 26...
Rxf3 {[%clk 0:02:38.9]} 27. Rxf3 {[%clk 0:01:52.9]} 27... Qg4+ {[%clk
0:02:37.8]} 28. Kf2 {[%clk 0:01:54.1]} 28... Qxh4+ {[%clk 0:02:36.7]} 29. Kg1
{[%clk 0:01:50.8]} 29... Qg4+ {[%clk 0:02:36.6]} 30. Kf2 {[%clk 0:01:52.1]}
30... Qg2+ {[%clk 0:02:33.9]} 31. Ke3 {[%clk 0:01:51.2]} 31... Qxg5+ {[%clk
0:02:33.7]} 32. Ke2 {[%clk 0:01:46]} 32... Qg2+ {[%clk 0:02:29.7]} 33. Ke3
{[%clk 0:01:38.2]} 33... Qg5+ {[%clk 0:02:30.1]} 34. Ke2 {[%clk 0:01:38.8]}
34... Qh5 {[%clk 0:02:28.6]} 35. Rh1 {[%clk 0:01:27]} 35... Qg4 {[%clk
0:01:48.9]} 36. Rxh3 {[%clk 0:01:26.9]} 36... Qg2+ {[%clk 0:01:50]} 37. Kd1
{[%clk 0:01:25]} 37... Qg1+ {[%clk 0:01:46.5]} 38. Kc2 {[%clk 0:01:25.5]} 38...
h5 {[%clk 0:01:44.9]} 39. Kb2 {[%clk 0:00:34.1]} 39... bxc4 {[%clk 0:01:40.8]}
40. dxc4 {[%clk 0:00:33.5]} 40... a5 {[%clk 0:01:37.6]} 41. Qf2 {[%clk
0:00:32.1]} 41... Qg5 {[%clk 0:01:31.4]} 42. Rhg3 {[%clk 0:00:31.8]} 42... Qe7
{[%clk 0:01:28.7]} 43. Qg1 {[%clk 0:00:29.3]} 43... Qe8 {[%clk 0:01:27.1]} 44.
Rxg6+ {[%clk 0:00:29.3]} 44... Qxg6 {[%clk 0:01:23]} 45. Rg3 {[%clk 0:00:30.2]}
45... Qxg3 {[%clk 0:01:23.8]} 46. Qxg3+ {[%clk 0:00:32.1]} 46... Kh6 {[%clk
0:01:23.2]} 47. Qh4 {[%clk 0:00:33.1]} 47... Rg8 {[%clk 0:01:22.5]} 48. a3
{[%clk 0:00:24.9]} 48... Rg5 {[%clk 0:01:17.4]} 49. b4 {[%clk 0:00:21.5]} 49...
cxb4 {[%clk 0:01:17.4]} 50. axb4 {[%clk 0:00:23.4]} 50... axb4 {[%clk
0:01:18.6]} 51. c5 {[%clk 0:00:24.1]} 51... dxc5 {[%clk 0:01:18.6]} 52. d6
{[%clk 0:00:25.7]} 52... c4 {[%clk 0:01:12.6]} 53. d7 {[%clk 0:00:26.2]} 53...
c3+ {[%clk 0:01:13.7]} 54. Kb3 {[%clk 0:00:27]} 54... c2 {[%clk 0:01:12.2]} 55.
d8=Q {[%clk 0:00:25.3]} 55... c1=Q {[%clk 0:01:09.5]} 56. Qf6+ {[%clk
0:00:22.8]} 56... Kh7 {[%clk 0:01:01.9]} 57. Qhxg5 {[%clk 0:00:21.5]} 57... Qc3+
{[%clk 0:01:02.2]} 58. Ka4 {[%clk 0:00:22.6]} 58... Qa3+ {[%clk 0:01:01.4]} 59.
Kb5 {[%clk 0:00:23.7]} 59... Qd3+ {[%clk 0:01:01.7]} 60. Kc6 {[%clk 0:00:25]}
60... Qc4+ {[%clk 0:01:02.2]} 61. Kd7 {[%clk 0:00:26.2]} 61... Qd5+ {[%clk
0:00:57.1]} 62. Qd6 {[%clk 0:00:26.2]} 62... Qb5+ {[%clk 0:00:58]} 63. Ke7
{[%clk 0:00:26.6]} 63... Qb7+ {[%clk 0:00:57.6]} 64. Qd7 {[%clk 0:00:27.9]} 1-0